[Event "Susha Chess Blitz 2022"]
[Site "Shusha"]
[Date "2022.09.24"]
[Round "6"]
[White "Mamedov, Rauf"]
[Black "Guseinov, Gadir"]
[Result "1/2-1/2"]
[ECO "C43"]
[WhiteElo "2646"]
[BlackElo "2661"]
[Annotator "TA"]
[PlyCount "19"]
[EventDate "2022.09.24"]
[EventType "tourn"]
[EventCountry "AZE"]
[SourceTitle "playchess.com"]
[Source "ChessBase"]
[SourceQuality "1"]
[TimeControl "180+2"]

{[%evp 16,19,0,0,0,0]} 1. e4 {[%emt 0:00:01]} e5 {[%emt 0:00:02]} 2. Nf3 {[%emt 0:00:02]} Nf6 {[%emt 0:00:01]} 3. d4 {[%emt 0:00:04]} Nxe4 {[%emt 0:00:03]} 4. Bd3 {[%emt 0:00:02]} d5 {[%emt 0:00:03]} 5. Nxe5 {[%emt 0:00:02]} Nd7 {[%emt 0:00:01]} 6. Nxf7 {[%emt 0:00:05]} Kxf7 {[%emt 0:00:01]} 7. Qh5+ {[%emt 0:00:02]} Ke6 {[%emt 0:00:03]} 8. Qe2 {[%emt 0:00:04] [#]} Kf7 $146 {[%emt 0:00:01]} ({Predecessor:} 8... Bb4+ 9. c3 Bd6 10. f3 Qh4+ 11. Kd1 Ne5 12. dxe5 Nf2+ 13. Kc2 Bc5 14. Rf1 Nxd3 15. Qxd3 Qxh2 16. Bd2 Qh5 {½-½ (23) Schroeder,M (2453)-Lins,T (2449) ICCF email 2014}) 9. Qh5+ $1 {[%emt 0:00:02]} Ke6 {[%emt 0:00:04] [#] White must now prevent ...Ndf6. C43: Petroff Defence: 3 d4.} 10. Qe2 {[%emt 0:00:01] An even fight not without its subleties.} 1/2-1/2

[Event "Susha Chess Blitz 2022"]
[Site "Shusha"]
[Date "2022.09.24"]
[Round "6"]
[White "Yilmaz, Mustafa"]
[Black "Durarbayli, Vasif"]
[Result "1-0"]
[ECO "E18"]
[WhiteElo "2633"]
[BlackElo "2628"]
[Annotator "TA"]
[PlyCount "61"]
[EventDate "2022.09.24"]
[EventType "tourn"]
[EventCountry "AZE"]
[SourceTitle "playchess.com"]
[Source "ChessBase"]
[SourceQuality "1"]
[TimeControl "180+2"]

{[%evp 15,61,3,24,27,28,23,19,23,14,22,14,7,15,2,25,22,48,25,22,27,27,19,35,31,44,8,9,1,20,12,60,58,86,12,135,133,112,118,189,197,193,191,180,180,501,500,29998,29999]} 1. d4 {[%emt 0:00:01]} Nf6 {[%emt 0:00:00]} 2. c4 {[%emt 0:00:01]} e6 {[%emt 0:00:01]} 3. Nf3 {[%emt 0:00:01]} b6 {[%emt 0:00:00]} 4. g3 Bb7 5. Bg2 {[%emt 0:00:04]} Be7 {[%emt 0:00:02]} 6. O-O {[%emt 0:00:02]} O-O {[%emt 0:00:01]} 7. Nc3 {[%emt 0:00:01]} Ne4 {[%emt 0:00:01]} 8. Bd2 {[%emt 0:00:01]} f5 {[%emt 0:00:13]} 9. Ne5 {[%emt 0:00:05] E18: Queen's Indian: Old Main Line (4 g3 Bb7 5 Bg2 Be7 6 0-0 0-0 7 Nc3).} Bf6 {[%emt 0:00:24]} 10. Nxe4 {[%emt 0:00:45]} Bxe4 {[%emt 0:00:13]} 11. Bxe4 {[%emt 0:00:13] The position is equal.} fxe4 {[%emt 0:00:02]} 12. Qc2 {[%emt 0:00:02]} d5 {[%emt 0:00:32]} 13. f4 {[%emt 0:00:27]} (13. cxd5 {looks sharper.} Qxd5 14. Qxc7 Qxd4 15. Bc3) 13... exf3 {[%emt 0:00:34]} 14. Nxf3 {[%emt 0:00:04]} Nc6 {[%emt 0:00:01]} 15. e3 {[%emt 0:00:38] [#]} Ne7 $146 {[%emt 0:00:30]} ({Predecessor:} 15... a5 16. a3 Rc8 17. Rac1 Ne7 18. e4 dxe4 19. Qxe4 Nf5 20. Bc3 Qd6 21. Rce1 c5 {½-½ (38) Spierenburg,P (2056)-Laan,A (2208) ICCF email 2017}) 16. Rac1 {[%emt 0:00:09]} Rc8 {[%emt 0:00:01]} 17. e4 {[%emt 0:00:05]} dxe4 {[%emt 0:00:19]} 18. Qxe4 {[%emt 0:00:02]} Qd7 {[%emt 0:00:02]} 19. Bg5 {[%emt 0:00:19]} Nf5 {[%emt 0:00:10]} 20. Bxf6 {[%emt 0:00:02]} Rxf6 {[%emt 0:00:01]} 21. Rcd1 {[%emt 0:00:06]} Rcf8 {[%emt 0:00:06]} 22. Ne5 {[%emt 0:00:06]} Qa4 {[%emt 0:00:05]} (22... Qd6 $11) 23. Ng4 $14 {[%emt 0:00:13]} Rg6 {[%emt 0:00:09]} 24. d5 {[%emt 0:00:02]} (24. Rde1 $16) 24... h5 (24... Qe8 $11) 25. Ne5 $36 {[%emt 0:00:08][%mdl 2048] White is really pushing.} Rgf6 {[%emt 0:00:21] [#]} 26. dxe6 $1 {[%emt 0:00:04] White is more active.} Nd6 {[%emt 0:00:02] [#]} (26... Qe8 $16) 27. Qd5 $1 $18 {[%emt 0:00:05] Hoping for e7+.} Rxf1+ {[%emt 0:00:02]} 28. Rxf1 {[%emt 0:00:00]} Rxf1+ {[%emt 0:00:01]} 29. Kxf1 {[%emt 0:00:01] Strongly threatening e7+.} Kf8 {[%emt 0:00:03]} (29... Qc2 {is a better chance.} 30. e7+ Kh7) 30. Ng6+ {[%emt 0:00:02]} Ke8 {[%emt 0:00:01]} (30... Kg8 $18 31. e7+ Kh7) 31. Qa8+ {[%emt 0:00:01] Weighted Error Value: White=0.08 (flawless) /Black=0.62} 1-0

[Event "Susha Chess Blitz 2022"]
[Site "Shusha"]
[Date "2022.09.24"]
[Round "7"]
[White "Radjabov, Teimour"]
[Black "Durarbayli, Vasif"]
[Result "1/2-1/2"]
[ECO "E19"]
[WhiteElo "2747"]
[BlackElo "2628"]
[Annotator "TA"]
[PlyCount "63"]
[EventDate "2022.09.24"]
[EventType "tourn"]
[EventCountry "AZE"]
[SourceTitle "playchess.com"]
[Source "ChessBase"]
[SourceQuality "1"]
[TimeControl "180+2"]

{[%evp 23,63,0,12,-1,0,-16,-16,-20,-6,-20,-5,-4,-14,-17,-18,-52,-56,-56,-54,-77,-78,-78,-76,-87,-64,-152,-33,-33,-38,-62,-62,-117,-103,-128,-62,-51,0,-137,0,-49,0,-129]} 1. d4 {[%emt 0:00:01]} Nf6 {[%emt 0:00:00]} 2. Nf3 {[%emt 0:00:01]} e6 {[%emt 0:00:01]} 3. c4 b6 4. g3 {[%emt 0:00:02]} Bb7 {[%emt 0:00:02]} 5. Bg2 {[%emt 0:00:01]} Be7 {[%emt 0:00:00]} 6. O-O {[%emt 0:00:03]} O-O {[%emt 0:00:02]} 7. Nc3 {[%emt 0:00:02]} Ne4 {[%emt 0:00:01]} 8. Qc2 {[%emt 0:00:00]} Nxc3 {[%emt 0:00:01]} 9. Qxc3 {[%emt 0:00:01]} a5 {[%emt 0:00:01]} 10. Bf4 {[%emt 0:00:08]} d6 {[%emt 0:00:06]} 11. Rfd1 {[%emt 0:00:02]} Nd7 {[%emt 0:00:06]} 12. Rac1 {[%emt 0:00:01]} h6 {[%emt 0:00:05] [#]} 13. b3 $146 {[%emt 0:00:10] E16: Queen's Indian: 4 g3 Bb7 5 Bg2 Bb4+.} ({Predecessor:} 13. Qd3 f5 14. Qe3 Rf6 15. h4 Qe8 16. Qa3 e5 17. c5 exf4 18. c6 Bxc6 19. Rxc6 fxg3 20. Rxc7 gxf2+ 21. Kxf2 {0-1 (40) Van Wely,L (2605)-Salov,V (2675) Amsterdam 1996}) 13... Qe8 {[%emt 0:00:12]} 14. Ne1 {[%emt 0:00:22]} Bxg2 {[%emt 0:00:05]} 15. Nxg2 {[%emt 0:00:01]} f5 {[%emt 0:00:22]} 16. Qc2 {[%emt 0:00:08]} Bf6 {[%emt 0:00:47]} 17. Be3 {[%emt 0:00:14]} Qf7 {[%emt 0:00:25]} 18. d5 {[%emt 0:00:02]} Be5 {[%emt 0:00:08]} 19. Bd4 {[%emt 0:00:05]} Bxd4 {[%emt 0:00:05]} 20. Rxd4 e5 21. Rdd1 {[%emt 0:00:07]} f4 {[%emt 0:00:04]} 22. f3 {[%emt 0:00:13]} Rae8 {[%emt 0:00:08]} 23. Rf1 {[%emt 0:00:01]} Nc5 {[%emt 0:00:04]} 24. e4 {[%emt 0:00:13]} (24. Rf2 $15) 24... fxe3 {[%emt 0:00:02]} (24... fxg3 $17 {And now ...Qh5 would win.} 25. hxg3 Qg6) 25. Nxe3 {[%emt 0:00:01]} Qh5 {[%emt 0:00:06]} 26. Qg2 {[%emt 0:00:08]} Rf6 {[%emt 0:00:04]} 27. Rc2 {[%emt 0:00:21]} (27. Ng4 $15 Rf5 28. Qe2) 27... Ref8 $17 {[%emt 0:00:03][%cal Rf6f3]} 28. Rcf2 {[%emt 0:00:08]} Nd3 {[%emt 0:00:01]} (28... R6f7 $17 29. Kh1 a4 30. bxa4 Qg5) 29. Rd2 $15 {[%emt 0:00:01]} Nc5 {[%emt 0:00:03]} (29... Qg6 $15) 30. Rdf2 $1 $17 {[%emt 0:00:01]} Nd3 {[%emt 0:00:13]} ({Black should try} 30... R6f7 $17 31. Kh1 a4 32. bxa4 Qg6) 31. Rd2 $15 {[%emt 0:00:01]} Nc5 {[%emt 0:00:01]} (31... Qg6 $15) 32. Rdf2 $1 {[%emt 0:00:01] Weighted Error Value: White=0.17 (very precise) /Black=0.29 (precise)} 1/2-1/2

[Event "Susha Chess Blitz 2022"]
[Site "Shusha"]
[Date "2022.09.24"]
[Round "7"]
[White "Wang, Hao"]
[Black "Guseinov, Gadir"]
[Result "1-0"]
[ECO "B27"]
[WhiteElo "2722"]
[BlackElo "2661"]
[Annotator "TA"]
[PlyCount "100"]
[EventDate "2022.09.24"]
[EventType "tourn"]
[EventCountry "AZE"]
[SourceTitle "playchess.com"]
[Source "ChessBase"]
[SourceQuality "1"]
[TimeControl "180+2"]

{[%evp 10,100,0,0,9,0,14,2,0,-10,52,58,47,47,45,45,98,99,131,138,128,145,137,141,133,133,134,118,97,63,157,157,157,154,154,160,195,193,216,208,198,194,184,181,181,185,182,181,174,161,278,251,512,500,452,353,350,348,401,396,371,372,361,334,619,610,600,593,615,558,1010,933,933,916,954,711,682,711,684,662,1926,1899,1951,1892,6133,2904,5822,4408,29990,29991,29991,29992,29993]} 1. e4 {[%emt 0:00:02]} c5 {[%emt 0:00:00]} 2. Nf3 {[%emt 0:00:00]} g6 {[%emt 0:00:05]} 3. c3 {[%emt 0:00:02]} d5 {[%emt 0:00:01]} 4. e5 {[%emt 0:00:02]} Nc6 {[%emt 0:00:01]} 5. d4 {[%emt 0:00:01]} cxd4 {[%emt 0:00:00]} 6. cxd4 {[%emt 0:00:02]} Bg4 {[%emt 0:00:01] B22: Sicilian: 2 c3.} 7. Bb5 {[%emt 0:00:09]} Rc8 {[%emt 0:00:00]} 8. O-O {[%emt 0:00:05]} Qb6 {[%emt 0:00:51] The position is equal.} 9. Nc3 {[%emt 0:00:07] [#]} a6 $146 {[%emt 0:00:16]} (9... e6 $1 $11) ({Predecessor:} 9... e6 10. Be3 a6 11. Bxc6+ Rxc6 12. Qb3 Qxb3 13. axb3 Bxf3 14. gxf3 Kd7 15. Rfc1 Bb4 {0-1 (35) Vidic,T (2037)-Supancic,D (2336) Slovenia 2014}) 10. Bxc6+ $14 {[%emt 0:00:11]} Qxc6 {[%emt 0:00:01]} 11. h3 {[%emt 0:00:06]} (11. Bd2 $5 {[%cal Ra1c1]}) 11... Bxf3 {[%emt 0:00:29]} 12. Qxf3 {[%emt 0:00:02]} Rd8 {[%emt 0:00:01]} (12... e6 $14) 13. Be3 $16 {[%emt 0:00:14]} Bg7 {[%emt 0:00:01]} 14. Rac1 $36 {[%emt 0:00:08][%mdl 2048] White is in control.} Qd7 {[%emt 0:00:04]} 15. b3 {[%emt 0:00:19]} b5 {[%emt 0:00:02] Inhibits Na4.} 16. Ne2 {[%emt 0:00:05]} Nh6 {[%emt 0:00:06]} 17. g4 {[%emt 0:00:07][%cal Bg2g4,Bg4g5][%mdl 32]} O-O {[%emt 0:00:24]} 18. Rc5 {[%emt 0:00:10]} f6 {[%emt 0:00:11]} 19. exf6 {[%emt 0:00:04]} exf6 {[%emt 0:00:16]} (19... Rxf6 $14 20. Qg3 Nf7) 20. Nf4 f5 {[%cal Rf5g4]} 21. g5 {[%emt 0:00:27]} ({Don't take} 21. Rxd5 $6 Qb7 $14) (21. Nxd5 $2 fxg4 22. Qg3 Qf7 23. Bxh6 Bxh6 $17) (21. Qxd5+ Qxd5 22. Nxd5 fxg4 $11) 21... Nf7 {[%emt 0:00:01] [#]} 22. h4 {[%emt 0:00:01] White is more active.} ({Don't do} 22. Nxd5 Rde8 $16) ({And not} 22. Qxd5 Qe7 23. Qe6 Qxg5+ 24. Ng2 Qh5 $17) 22... Nd6 {[%emt 0:00:11]} 23. Qxd5+ {[%emt 0:00:03]} Nf7 {[%emt 0:00:27]} 24. Qxd7 {[%emt 0:00:16]} Rxd7 {[%emt 0:00:00]} 25. Ne6 {[%emt 0:00:09]} Re8 {[%emt 0:00:01]} 26. Nxg7 {[%emt 0:00:04]} Kxg7 {[%emt 0:00:00]} 27. Rfc1 {[%emt 0:00:06]} Re4 {[%emt 0:00:01]} 28. Rc7 {[%emt 0:00:02]} Rxc7 {[%emt 0:00:15]} 29. Rxc7 $18 {[%emt 0:00:01][%mdl 4096] Endgame Hoping for d5. KRB-KRN} f4 {[%emt 0:00:00]} (29... Rg4+ $142 30. Kf1 f4) 30. Bd2 {[%emt 0:00:03]} Kf8 $2 {[%emt 0:00:05]} (30... f3 31. Kh2 Kg8 32. Rc8+ Kg7) 31. Bb4+ {[%emt 0:00:08]} Ke8 {[%emt 0:00:01]} 32. Bc5 {[%emt 0:00:05]} f3 {[%emt 0:00:01]} 33. d5 {[%emt 0:00:16][%cal Bd4d5,Bd5d6][%mdl 32]} Ne5 {[%emt 0:00:00]} 34. Re7+ Kd8 {White must now prevent ...Rg4+.} 35. d6 {[%emt 0:00:03]} Rg4+ {[%emt 0:00:09] [#]} 36. Kh2 $1 {[%emt 0:00:09]} Nd7 {[%emt 0:00:02]} (36... Rxh4+ 37. Kg3 Rg4+ 38. Kh3 Rxg5) 37. Kh3 {[%emt 0:00:03]} Rg1 {[%emt 0:00:02]} 38. Bb4 {[%emt 0:00:02]} Rd1 {[%emt 0:00:05]} 39. Kg3 {[%emt 0:00:03]} Rd3 {[%emt 0:00:01]} 40. Rxh7 {[%emt 0:00:02]} Kc8 {[%emt 0:00:00]} 41. Rg7 {[%emt 0:00:02]} Rd4 {[%emt 0:00:02]} 42. a3 {[%emt 0:00:02]} a5 {[%emt 0:00:01]} 43. Bxa5 {[%emt 0:00:02]} Rxd6 {[%emt 0:00:00]} 44. Bb4 {[%emt 0:00:02]} Rd3 {[%emt 0:00:02]} 45. Rxg6 {[%emt 0:00:02]} Rd1 {[%emt 0:00:02]} 46. Re6 {[%emt 0:00:03]} Rh1 {[%emt 0:00:03]} 47. g6 {[%emt 0:00:02]} Kc7 {[%emt 0:00:01]} 48. Kg4 {[%emt 0:00:04] Bd6+ would kill now.} Rh2 {[%emt 0:00:03]} 49. Bd6+ {[%emt 0:00:05]} Kc6 {[%emt 0:00:01]} 50. Bxh2+ Kd5 {Weighted Error Value: White=0.08 (flawless) /Black=0.36} 1-0

[Event "Susha Chess Blitz 2022"]
[Site "Shusha"]
[Date "2022.09.24"]
[Round "7"]
[White "Maghsoodloo, Parham"]
[Black "Mamedyarov, Shakhriyar"]
[Result "0-1"]
[ECO "C77"]
[WhiteElo "2721"]
[BlackElo "2757"]
[Annotator "TA"]
[PlyCount "106"]
[EventDate "2022.09.24"]
[EventType "tourn"]
[EventCountry "AZE"]
[SourceTitle "playchess.com"]
[Source "ChessBase"]
[SourceQuality "1"]
[TimeControl "180+2"]

{[%evp 13,106,-6,16,15,3,0,0,0,0,0,28,26,33,19,26,24,39,37,42,32,30,-27,-20,-28,-11,-101,-14,-14,-14,-14,0,0,33,0,0,0,0,0,20,0,14,0,38,-6,76,16,18,0,36,35,32,-110,84,73,243,243,244,243,243,244,244,243,243,243,565,20,18,0,0,0,0,0,0,-29989,4133,-29995,0,0,0,0,607,554,415,289,289,-47,-55,-240,-227,-285,-269,-29997,-29998,-29998,-29999]} 1. e4 e5 2. Nf3 {[%emt 0:00:02]} Nc6 {[%emt 0:00:00]} 3. Bb5 a6 4. Ba4 {[%emt 0:00:02]} Nf6 {[%emt 0:00:01]} 5. Bxc6 {[%emt 0:00:01]} dxc6 {[%emt 0:00:01]} 6. d3 {[%emt 0:00:01]} Bd6 {[%emt 0:00:05]} 7. Nbd2 {[%emt 0:00:02]} Nd7 {[%emt 0:00:09]} 8. Nc4 {[%emt 0:00:11] C77: Ruy Lopez: 3...a6 4 Ba4 Nf6, unusual lines.} O-O {[%emt 0:00:03]} 9. h4 {[%emt 0:00:03]} b5 {[%emt 0:00:14]} 10. Ne3 {[%emt 0:00:01] [#] The position is equal.} Nf6 $146 {[%emt 0:00:03]} ({Predecessor:} 10... Nb6 11. h5 c5 12. Qe2 a5 13. Nh4 Be7 14. Nef5 Bxh4 15. Nxh4 c4 16. h6 cxd3 17. cxd3 {0-1 (51) Golubka,P (2373)-Salomon,J (2470) Gothenburg 2016}) 11. h5 {[%emt 0:00:04]} h6 {[%emt 0:00:02]} 12. Nh4 {[%emt 0:00:01]} Bb4+ {[%emt 0:00:07]} 13. Kf1 {[%emt 0:00:01]} (13. Bd2 {feels hotter.} a5 14. Nhf5 Re8 15. a4) 13... Re8 {[%emt 0:00:04]} 14. Qf3 {[%emt 0:00:08]} Bf8 {[%emt 0:00:05]} 15. Nhf5 {[%emt 0:00:26]} c5 {[%emt 0:00:02]} 16. Rh3 {[%emt 0:00:13]} c4 {[%emt 0:00:13]} 17. Rg3 {[%emt 0:00:03]} ({White should play} 17. dxc4 bxc4 18. Kg1 (18. Nxc4 Nxe4 19. Be3 Bb7 $17)) 17... Kh8 $11 {[%emt 0:00:01]} 18. dxc4 {[%emt 0:00:27]} bxc4 {[%emt 0:00:02]} 19. Nxc4 {[%emt 0:00:13] [#]} (19. Rh3 $1 $11 {was the only way to keep the balance.}) 19... Bxf5 {[%emt 0:00:03]} (19... Nxe4 $1 $17 {[%mdl 512] White must now prevent ...Bxf5.} 20. Qxe4 Bxf5) 20. exf5 {[%emt 0:00:01]} e4 {[%emt 0:00:19]} 21. Qe2 {[%emt 0:00:03]} Qd7 {[%emt 0:00:01]} 22. Ne3 {[%emt 0:00:01]} Rad8 {[%emt 0:00:09]} 23. Qxa6 {[%emt 0:00:11]} Nxh5 {[%emt 0:00:11]} 24. Rg4 {[%emt 0:00:03]} Nf6 {[%emt 0:00:03]} 25. Rh4 {[%emt 0:00:01]} Kg8 {[%emt 0:00:05]} 26. a4 {[%emt 0:00:15]} Bc5 {[%emt 0:00:23]} 27. Qb5 {[%emt 0:00:08]} Qd6 {[%emt 0:00:14]} 28. a5 {[%emt 0:00:05]} Ba7 {[%emt 0:00:14]} (28... Ra8 $11 {remains equal.}) 29. Qe2 {[%emt 0:00:22]} (29. Kg1 $16) 29... Qe5 {[%emt 0:00:12]} 30. Kg1 {[%emt 0:00:14]} Rd7 {[%emt 0:00:02]} (30... Bxe3 $5 31. Bxe3 Qxb2 $11) 31. a6 {[%emt 0:00:03]} Red8 {[%emt 0:00:01]} 32. g3 {[%emt 0:00:10] [#]} (32. Qe1 $14 {keeps the upper hand.}) 32... Nd5 $2 {[%emt 0:00:10] Black is more active.} (32... Rd1+ $1 $17 {[%mdl 512] stays on course.} 33. Kh2 Bxe3 34. fxe3 R1d5) 33. Kg2 $16 {[%emt 0:00:04]} Nxe3+ $2 {[%emt 0:00:15]} (33... Bxe3 $16 34. Bxe3 (34. fxe3 Qxf5 35. Rh5 Qf6 $11) 34... Qxb2) 34. Bxe3 $18 {[%emt 0:00:01]} Qxb2 {[%emt 0:00:03] ...Bxe3 is the strong threat.} 35. Ra4 $1 {[%emt 0:00:07]} Bxe3 {[%emt 0:00:05]} 36. Qxe3 {[%emt 0:00:01]} Qxc2 {[%emt 0:00:03]} 37. Rhxe4 {[%emt 0:00:05]} (37. Qxe4 Qxe4+ 38. Rhxe4 c5 $14) 37... Rd3 {[%emt 0:00:05] [#]} 38. Qf4 {[%emt 0:00:17]} Rd1 $2 {[%emt 0:00:01]} (38... Ra8 {is a better chance.} 39. a7 Qc6) 39. Qf3 $2 {[%emt 0:00:05]} (39. a7 $18 Qd3 40. a8=Q Qf1+ 41. Kf3 Rxa8 42. Rxa8+ Kh7 43. Rf8 (43. Qxc7 Rd3+ 44. Kg4 Qd1+ 45. Kh4 Qh1+ 46. Kg4 Qd1+ 47. Kh4 Qf3 $15) 43... Qh1+ 44. Kg4 h5+ 45. Kg5 f6+ {[#]} 46. Rxf6 $1 {[%mdl 512]} gxf6+ 47. Kxf6) 39... R8d3 $11 {[%emt 0:00:04]} 40. a7 {[%emt 0:00:03]} Rxf3 {[%emt 0:00:03]} 41. a8=Q+ {[%emt 0:00:01][%mdl 64] Zwischenzug} Kh7 {[%emt 0:00:04] Chess con chili.} 42. Kxf3 {[%emt 0:00:01]} Rd2 $40 {[%emt 0:00:10][%mdl 128] Black has some attack.} 43. Re8 $2 {[%emt 0:00:04][%mdl 8192]} (43. Qa7 $11 c5 44. Qxf7 Rxf2+ 45. Kg4 Qd1+ 46. Kh3 Qh1+ 47. Kg4 Qf3+ 48. Kh3 Qh1+ 49. Kg4 Qf3+ 50. Kh3 Qh1+) 43... Qxf5+ $4 {[%emt 0:00:03][%mdl 8192]} (43... Rxf2+ 44. Ke3 Qd2+ 45. Ke4 Re2+ 46. Kf3 Qd3+ 47. Kg4 h5+ 48. Kf4 Rf2+ 49. Qf3 Rxf3+ 50. Kg5 Rxg3+ 51. Kh4 Rh3+ 52. Kg5 Qg3+ 53. Rg4 Qxg4#) 44. Kg2 $4 {[%emt 0:00:02][%mdl 8192]} (44. Rf4 $18 Qd5+ 45. Qxd5 Rxd5 46. Rxf7) 44... Rxf2+ $2 {[%emt 0:00:03]} (44... Qxf2+ {mates} 45. Kh3 Qf5+ 46. Rg4 Qf1+ 47. Qg2 Qxg2+ 48. Kh4 Qh2#) 45. Kg1 {[%emt 0:00:01] Strongly threatening Rh8+.} Rf1+ {[%emt 0:00:00]} 46. Kh2 {[%emt 0:00:01] aiming for Rh8+.} Qh5+ $4 {[%emt 0:00:02][%mdl 8192]} (46... Rf2+ $11 47. Kg1 Rf1+ 48. Kg2 Rf2+ 49. Kg1) 47. Rh4 $18 Qf5 {[%emt 0:00:08]} 48. Rh8+ {[%emt 0:00:05]} Kg6 {[%emt 0:00:00]} 49. R8xh6+ $2 {[%emt 0:00:02]} gxh6 $15 {[%emt 0:00:01]} 50. Qg8+ {[%emt 0:00:01]} ({White has to play} 50. Qc6+ $1 $15 Qe6 51. Rc4) 50... Kf6 $19 {[%emt 0:00:01]} 51. Qh8+ {[%emt 0:00:03]} Ke7 {( -> ...Qc2+)} 52. Rf4 $2 (52. Qa8 $19 Rf2+ 53. Kg1 Rf1+ 54. Kh2 Rf2+ 55. Kg1) 52... Qh5+ {[%emt 0:00:08]} 53. Rh4 {[%emt 0:00:03]} Qe2+ {[%emt 0:00:01] Weighted Error Value: White=0.79/Black=0.54} 0-1